Cogmind - Beta 16 @@@ ROGUE MODE // 2025.12.22 @ 00:32:48 Player: Oneirical Result: Destroyed by 4J-ROQ(R) with Subdweller Machine Gun Performance ------------- Evolutions (0) 0 Regions Visited (2) 400 Robots Destroyed (22) 110 Value Destroyed (354) 354 Prototype IDs (2) 40 Alien Tech Used (0) 0 Bonus (0) 0 TOTAL SCORE: 904 Bonus ------- None Cogmind --------- Core Integrity 0/250 Matter 266/300 Energy 69/100 System Corruption 0% Temperature Cool (2) Movement Treading (160) Location -10/Subcaves Parts ------- > --- POWER (1) -------- (None) > --- PROPULSION (2) --- Light Treads Wheel > --- UTILITY (2) ------ Medium Storage Unit Seismic Detector > --- WEAPON (2) ------- Subdweller Laser Autogun > --- INVENTORY (10) --- Light Treads Hacking Suite Assault Rifle Light Assault Rifle Light Assault Rifle Autogun Autogun Autogun Flail Peak State ------------ > --- POWER ------------ Ion Engine > --- PROPULSION ------- Wheel Compact Wheel > --- UTILITY ---------- Small Storage Unit Seismic Detector > --- WEAPON ----------- Autogun Flail > --- INVENTORY -------- Light Treads High-capacity Matter Pod Signal Interpreter Targeting Computer Weapon Shielding Tractor Beam Particle Gun Light EM Pulse Cannon [Rating: 10] Favorites ----------- Power Ion Engine Engine Ion Engine Power Core Light Nuclear Core Propulsion Wheel Treads Light Treads Wheel Wheel Utility Small Storage Unit Device Seismic Detector Storage Small Storage Unit Processor Targeting Computer Protection Weapon Shielding Weapon Autogun Energy Gun Small Laser Energy Cannon Beam Cannon Ballistic Gun Autogun Impact Weapon Flail Slashing Weapon Mining Claw Build | -11 -10 -10 ------- Run | Yrd Mat Sub Slots Evolved . | . . . Power . | . . . Propulsion . | . . . Utility . | . . . Weapon . | . . . Parts Attached 22 | 7 13 2 Power 3 | 1 2 . Engine 2 | 1 1 . Core 1 | . 1 . Reactor . | . . . Propulsion 5 | 1 3 1 Treads 2 | 1 . 1 Leg . | . . . Wheel 3 | . 3 . Hover . | . . . Flight . | . . . Utility 5 | 2 3 . Device 1 | 1 . . Storage 2 | 1 1 . Processor 1 | . 1 . Hackware . | . . . Protection 1 | . 1 . Artifact . | . . . Weapon 9 | 3 5 1 Energy Gun 4 | 3 . 1 Energy Cannon 1 | . 1 . Ballistic Gun 2 | . 2 . Ballistic Cannon . | . . . Launcher . | . . . Special Weapon . | . . . Impact Weapon 1 | . 1 . Slashing Weapon 1 | . 1 . Piercing Weapon . | . . . Special Melee Weapon . | . . . Unidentified Prototypes . | . . . Parts Lost 3 | . 1 2 Power 2 | . 1 1 Propulsion 1 | . . 1 Utility . | . . . Weapon . | . . . Highest Loss Streak 2 | . 1 2 To Critical Strikes . | . . . Average Backups 7 | . 7 9 Power . | . . . Propulsion 1 | . . 2 Utility 2 | . 2 1 Weapon 3 | . 3 6 Tool/Special . | . . . Unused Backups 12 | . 6 6 Power . | . . . Propulsion . | . . . Utility 4 | . 3 1 Weapon 8 | . 3 5 Tool/Special . | . . . Average Slot Usage (%) 98 | . 98 98 Engine 13 | . 13 13 Treads 2 | . 3 . Wheel 24 | . 23 27 Device 6 | . 4 12 Storage 14 | . 14 14 Processor 6 | . 8 1 Energy Gun 3 | . 4 1 Energy Cannon 1 | . 1 . Ballistic Gun 20 | . 18 26 Impact Weapon 1 | . 2 . Peak Build Rating 10 | 6 10 10 Average Rating 8 | 4 9 9 On Entrance 5 | . 6 10 Avg Prop Armor Cover (%) 13 | . 13 . Naked Turns . | . . . Heaviest Build 23 | 14 21 23 Greatest Support 26 | 20 26 26 Greatest Overweight (x) 1 | . 1 . Average Overweight (x) . | . . . Largest Inventory Capacity 10 | 8 10 10 Average Capacity 8 | 7 8 10 Most Carried 10 | 3 10 10 Average Carried 7 | . 7 9 Final Capacity 10 | 8 10 10 Final Carried 10 | 2 10 9 Class Distribution -------------------- 100% | Mutant Dominant Class ---------------- Mutant | -10/Materials Mutant | -10/Subcaves Resources | -11 -10 -10 ----------- Run | Yrd Mat Sub Matter Collected 900 | 280 512 108 Remotely . | . . . Salvage Created 650 | 110 426 114 Parts 47 | 6 31 10 Haulers Intercepted 1 | . 1 . Recyclers Shooed . | . . . Parts Field Recycled . | . . . Retrieved Matter . | . . . Parts Self-Destructed 9 | . . 9 Prevented . | . . . Parts Restored . | . . . Kills | -11 -10 -10 ------- Run | Yrd Mat Sub Combat Hostiles Destroyed 13 | . 9 4 Guns 12 | . 8 4 Cannons 1 | . 1 . Classes Destroyed 10 | 2 6 2 Tunneler 2 | 2 . . Hauler 1 | . 1 . Recycler 2 | 1 1 . Mechanic 1 | . 1 . Operator 1 | . 1 . Watcher 2 | . 2 . Swarmer 9 | . 6 3 Grunt 3 | . 3 . Artisan 1 | . . 1 Subdweller 1 | . . 1 Best Kill Streak 4 | 2 4 4 Combat Bots Only 4 | . 3 4 Max Kills in Single Turn 2 | 1 1 2 Gunslinging 1 | . . 1 Exploded . | . . . Melee . | . . . Uniques/NPCs Destroyed . | . . . Combat | -11 -10 -10 -------- Run | Yrd Mat Sub Hostile Shots Fired 77 | . 42 35 Missed 19 | . 11 8 Hits 58 | . 31 27 Projectile 58 | . 31 27 Damage Taken 849 | . 368 481 Core 257 | . 67 190 Absorbed by Shields . | . . . Redirected to Shielding 20 | . 20 . Core Remaining (%) 100 | 100 . . Volleys Fired 66 | 4 45 17 Largest 2 | 2 2 2 Hottest 100 | 80 100 83 Shots Fired 130 | 8 89 33 Gun 123 | 8 82 33 Cannon 7 | . 7 . Launcher . | . . . Special . | . . . Kinetic 104 | . 76 28 Thermal 22 | 4 13 5 Explosive . | . . . Electromagnetic 4 | 4 . . Robot Hit Streak 14 | 5 14 14 Robot Miss Streak 4 | 1 4 3 Penetration Max . | . . . Secondary Targets 2 | . . 2 Max Gunslinging Chain 1 | . . 1 Shots Hit Robots 83 | 5 52 26 Core Hits 29 | 3 20 6 Critical Kills . | . . . Critical Parts Destroyed . | . . . Critical Strikes . | . . . Melee Attacks 15 | . 11 4 Impact 11 | . 7 4 Slashing 4 | . 4 . Piercing . | . . . Sneak Attacks 1 | . . 1 Combat Hostiles . | . . . Follow-up Attacks . | . . . Damage Inflicted 1401 | 66 848 487 Guns 1213 | 66 760 387 Cannons 88 | . 88 . Explosions . | . . . Melee 100 | . . 100 Ramming . | . . . Kinetic 1008 | . 704 304 Thermal 251 | 24 144 83 Explosive . | . . . Electromagnetic 42 | 42 . . Impact 100 | . . 100 Slashing . | . . . Piercing . | . . . Highest Corruption . | . . . Average Corruption . | . . . Corruption Purged . | . . . Corruption Blocked . | . . . Overload Shots . | . . . Overflow Damage 60 | . . 60 Projectiles . | . . . Explosions . | . . . Melee 60 | . . 60 Knockbacks 1 | . . 1 Impact 1 | . . 1 Kinetic . | . . . Secondary . | . . . Self-Inflicted Damage 76 | . 76 . Shots 3 | . 3 . Rammed . | . . . Targets Rammed . | . . . Kicked . | . . . Crushed . | . . . Highest Temperature 282 | 36 282 16 Average Temperature 43 | 16 49 7 Received Heat Transfer 174 | . 78 96 Siege Activations . | . . . Martial Activations . | . . . Shielding Activations . | . . . Robots Disrupted . | . . . Combat Hostiles . | . . . Robots Corrupted 1 | . . 1 Combat Hostiles . | . . . Parts Fried 1 | . . 1 Impact Corruptions 2 | . . 2 Robots Melted . | . . . Combat Hostiles . | . . . Parts Melted 2 | 1 1 . Heat Transferred 460 | 50 310 100 Parts Sabotaged . | . . . Parts Stolen . | . . . Parts Stripped . | . . . Power Chain Reactions 3 | . 3 . Alert | -11 -10 -10 ------- Run | Yrd Mat Sub Maximum Alert Level . | . . . Low Security (%) 100 | 100 100 . Level 1 . | . . . Level 2 . | . . . Level 3 . | . . . Level 4 . | . . . Level 5 . | . . . High Security . | . . . Max Security . | . . . Peak Influence 138 | 10 138 . Initial . | . . . Average 53 | 1 59 . Influence Increases 432 | 15 347 70 Destroy 0b10 Robot/C 240 | . 180 60 Destroy 0b10 Robot/NC 45 | 15 30 . Destroy Leader 56 | . 46 10 Successful Hack 32 | . 32 . Disable Machine 30 | . 30 . Destroy Structure 14 | . 14 . Lose Combat Pursuer 15 | . 15 . Influence Decreases 422 | 15 288 119 Entered New Map 29 | . . 29 Time Decay 363 | 15 278 70 Lost Part 30 | . 10 20 Squads Dispatched 1 | . 1 . Investigation . | . . . Extermination . | . . . Reinforcement 1 | . 1 . Assault . | . . . Garrison . | . . . Intercept . | . . . Searches Triggered . | . . . Construction Impeded . | . . . Haulers Reinforced . | . . . Active Scanning Responses . | . . . Cargo Convoy Interrupts . | . . . Stealth | -11 -10 -10 --------- Run | Yrd Mat Sub Distress Signals 2 | . 2 . Communications Jammed . | . . . Distress Signals . | . . . Times Spotted 24 | . 17 7 Peak Tracking Total 5 | . 5 4 Tactical Retreats 1 | . 1 . Traps | -11 -10 -10 ------- Run | Yrd Mat Sub Traps Triggered . | . . . Indirectly . | . . . Trap Hack Attempts . | . . . Triggered . | . . . Disarmed . | . . . Reprogrammed . | . . . Reused . | . . . Traps Extracted . | . . . Installed . | . . . Triggered . | . . . Machines | -11 -10 -10 ---------- Run | Yrd Mat Sub Machines Disabled 2 | . 2 . Max in Single Turn 2 | . 2 . Machines Repaired . | . . . Machines Dismantled . | . . . Machines Sabotaged . | . . . Overloaded Fab Kills . | . . . Hacking | -11 -10 -10 --------- Run | Yrd Mat Sub Machines Accessed 9 | . 9 . Terminals 6 | . 6 . Fabricators . | . . . Repair Stations 1 | . 1 . Recycling Units 2 | . 2 . Scanalyzers . | . . . Garrison Access . | . . . Total Hacks 21 | . 21 . Successful 11 | . 11 . Failed 10 | . 10 . Catastrophic 1 | . 1 . Database Lockouts . | . . . Manual 5 | . 5 . Terminals 14 | . 14 . Fabricators . | . . . Repair Stations 2 | . 2 . Recycling Units 5 | . 5 . Scanalyzers . | . . . Garrison Access . | . . . Terminal Hacks 6 | . 6 . Prototype ID Bank 1 | . 1 . Branch Access Points 1 | . 1 . Terminal Index 1 | . 1 . Patrol Status 1 | . 1 . Zone Layout 2 | . 2 . Fabricator Hacks . | . . . Repair Station Hacks . | . . . Recycling Unit Hacks 2 | . 2 . Retrieve Components 2 | . 2 . Scanalyzer . | . . . Garrison Access Hacks . | . . . Unauthorized Hacks 2 | . 2 . Terminals 1 | . 1 . Assimilate 1 | . 1 . Fabricators . | . . . Repair Stations . | . . . Recycling Units 1 | . 1 . Mask 1 | . 1 . Scanalyzers . | . . . Garrison Access . | . . . Data Cores Recovered . | . . . Used . | . . . Hacking Detections 7 | . 7 . Full Trace Events . | . . . Feedback Events . | . . . Feedback Blocked . | . . . Robot Schematics Acquired . | . . . Robots Built . | . . . Authchips . | . . . Time . | . . . Total Robot Build Rating . | . . . Part Schematics Acquired . | . . . Parts Built . | . . . Authchips . | . . . Time . | . . . Total Part Build Rating . | . . . Part Studies Acquired . | . . . Parts Repaired . | . . . Time . | . . . Parts Recycled . | . . . Recycled Matter . | . . . Retrieved Matter . | . . . Retrieved Components 10 | . 10 . Parts Scanalyzed . | . . . Part Schematics Acquired . | . . . Parts Damaged . | . . . Bothacking | -11 -10 -10 ------------ Run | Yrd Mat Sub Used RIF Installer . | . . . Robots Hacked . | . . . Non-combat . | . . . Combat . | . . . Robot Hacks Applied . | . . . Relay Couplers Released . | . . . Fabnet Peak Effective % . | . . . Robots Rewired . | . . . Allies Hacked . | . . . Hacks Repelled . | . . . Allies | -11 -10 -10 -------- Run | Yrd Mat Sub Total Allies 1 | . 1 . Largest Group 1 | . 1 1 Highest-Rated Group 10 | . 10 10 Highest-Rated Ally 10 | . 10 10 Total Orders 1 | . . 1 STAY 1 | . . 1 Ally Attacks . | . . . Total Damage . | . . . Kills . | . . . Allies Corrupted . | . . . Allies Melted . | . . . Intel | -11 -10 -10 ------- Run | Yrd Mat Sub Active Infowar (turns) 601 | 45 310 246 Seismic 601 | 45 310 246 Robot Analysis Total . | . . . Derelict Logs Recovered . | . . . Drone Launches . | . . . Drone Recoveries . | . . . Exploration | -11 -10 -10 ------------- Run | Yrd Mat Sub Turns Passed 1235 | 113 857 265 Spaces Moved 817 | 58 628 131 Core 6 | 6 . . Treads 81 | 52 29 . Legs . | . . . Wheels 730 | . 599 131 Hover . | . . . Flight . | . . . Fastest Speed 50 | 50 80 90 Average Speed 96 | 148 93 90 Slowest Speed 160 | 160 160 90 Overloaded Moves . | . . . Propulsion Burnouts . | . . . Robots Hopped . | . . . Potential Cave-ins . | . . . Cave-ins Triggered . | . . . Exploration Rate (%) 34 | 5 90 7 Regions Visited 2 Branch Regions 1 Pre-discovered Areas . | . . . Known Exits Taken . | . . . Unknown Exits Taken 2 | 1 1 . Scrap Searched . | . . . Spaces Dug 8 | . 8 . Terrain Destroyed 9 | . 9 . Melee 8 | . 8 . Projectile . | . . . AOE 1 | . 1 . Terrain Rammed . | . . . Walls Destroyed . | . . . Machines Disabled . | . . . Actions | -11 -10 -10 --------- Run | Yrd Mat Sub Total 1124 | 74 806 244 Wait 164 | . 77 87 Move 815 | 57 627 131 Hop . | . . . Pick Up 23 | 5 17 1 Fast Attach 6 | 3 3 . Attach 5 | 3 1 1 Detach . | . . . Swap 17 | 2 12 3 Drop 13 | . 13 . Fire 66 | 4 45 17 Melee 15 | . 11 4 Ram . | . . . Kick . | . . . Crush . | . . . Escape Stasis . | . . . Rewire . | . . . Trap . | . . . Miscellaneous . | . . . Route ------- -11/Scrapyard -10/Materials (discovered 6 exits: [*Mat x3] / *Min x2 / [*Sub]) -10/Subcaves History --------- Turn | Location | Event 12 | -11/Scrapyard | Discovered new exit (range 15) 114 | -11/Scrapyard | Entered Materials 263 | -10/Materials | Discovered new exit (range 14) 343 | -10/Materials | Discovered new exit (range 14) 381 | -10/Materials | Build established: Mutant 642 | -10/Materials | Identified exit to Mines 698 | -10/Materials | Discovered new exit (range 4) 863 | -10/Materials | Discovered new exit (range 4) 960 | -10/Materials | Discovered new exit (range 10) 971 | -10/Materials | Entered Subcaves 971 | -10/Subcaves | Accompanied by 1 ally 1226 | -10/Subcaves | Ambushed by angry Subdweller bent on revenge 1230 | -10/Subcaves | Core integrity fell below 50% 1234 | -10/Subcaves | Core integrity fell below 20% 1236 | -10/Subcaves | Destroyed by 4J-ROQ(R) with Subdweller Machine Gun Last Messages --------------- 01169_ Lgt. Ion Engine fries itself beyond repair. 01170_ Acquired Sub. Laser. 01171_ Flight Unit fries itself beyond repair. 01177_ 28-G46(u) tweaks Twisted Machinery. 01206_ Sneak attack on 28-G46(u). 01206_ Destroyed Wheel. 01206_ 28-G46(u) system corrupted by crushing effect. 01206_ 28-G46(u) knocked back. 01207_ 28-G46(u) system terminally corrupted. 01207_ Lgt. Ion Engine fried. 01207_ 28-G46(u) cries out in pain. 01208_ Acquired 10 matter. 01223_ Com. Wheel destroyed. 01226_ RH-DN1(R) angrily emerges from the Twisted Machinery. 01226_ RH-DN1(R): "ECOKILL!" 01228_ Ion Engine destroyed. 01235_ Sub. Laser shoots sparks and powers down. Map ----- +----------------------------------------------------+ | ??????????????????#### # # # | | ???????????????#### # ! ### % ## | | ??????????????## ##?## ## ## | | ??????????????# ##???# ###?##? # | | ??????????????## ## #????# ##?????? # | | ??????????????# ## ##????###??????? %## | | ??????????????## ####??????????????? ###? | | ??????????????# %#??????????????????##??? | | ??????????????## ##??????????????????????? | | ??????????????## #??????????????????????? | | ??????????????# #??????????????????????? | | ??????????????## ##??????????????????????? | | ??????????????# #???????????????????????? | | ??????????????## ##??????????????????????? | | ??????????????# #??????????????????????? | | ??????????????## #??????????????????????? | | ??????????????#"" ##?????????????????????? | | ??????????????##"" ###???????????????????? | | ???????????????#" " % #???????????????????? | | ???????????????##" #???????????????????? | | ???????????????##"" "##???????????????????? | | ???????????????# R" "#????????????????????? | | ???????????????# "%##????????????????????? | | ???????????????# #?????????????????????? | | ???????????????## "#?????????????????????? | | ????????????????##@##?????????????????????? | | ?????????????????#RR#?????????????????????? | | ?????????????????# ##?????????????????????? | | ????????????????? ??????????????????????? | | ?????????????????# #??????????????????????? | | ????????????????? #??????????????????????? | | ????????????????? #??????????????????????? | | ?????????????????# ??????????????????????? | | ????????????????? #??????????????????????? | | ????????????????? "???????????????????????? | | ?????????????????""???????????????????????? | | ?????????????????# ???????????????????????? | | ??????????????????????????????????????????? | | ??????????????????????????????????????????? | | ??????????????????????????????????????????? | | ??????????????????????????????????????????? | | ??????????????????????????????????????????? | | ??????????????????????????????????????????? | | ??????????????????????????????????????????? | | ??????????????????????????????????????????? | | ??????????????????????????????????????????? | | ??????????????????????????????????????????? | | ??????????????????????????????????????????? | | ??????????????????????????????????????????? | | ??????????????????????????????????????????? | +----------------------------------------------------+ Best States ------------- Heat Dissipation 25 Energy Generation 14 Energy Capacity 250 Matter Stores 300 Matter Capacity 300 Sight Range 16 Terrain Scan Density 10 Weapon Shielding 33 Evasion (%) 44 Targeting Accuracy 5 Recoil Reduction 1 Item Schematics ----------------- None Robot Schematics ------------------ None Fabricated ------------ Nothing Repaired ---------- Nothing Studied --------- None Alien Tech Used ----------------- None Achievements -------------- None Challenges ------------ None Game ------ Seed SpliceXenonLaser Manual? 0 Play Time 00:20:17 Cumulative 47.7 hours Start 2025.12.22 @ 00:12:32 End 2025.12.22 @ 00:32:48 Sessions 1 Manual Loads 0 Difficulty Rogue Special Mode None Game No. 43 Rogue 41 Adventurer 2 Explorer 0 Win Type - Total 1 Types 0/0/0/1/0/0/0/0/0/0 Lore% 35 Gallery% 51 Achievement% 43 Wizard Run 0 Options --------- Layout 2 ASCII 0 Keyboard 1 Movement Numpad Keybinds 0 Fullscreen 1 Font 32/Terminus Map View 50x49 Zoom Use 0% Tactical HUD 1 Map Filters NONE Filters NONE Steam 0 RUN: fb1b6994-bce3-4e7a-9013-b7b5f18a8129